[Event "Irish New Year Events-IM1 2020"]
[Site "Dublin"]
[Date "2020.01.03"]
[Round "3.6"]
[White "Delaney, Killian"]
[Black "Mannion, Stephen R"]
[Result "1-0"]
[ECO "A21"]
[WhiteElo "2278"]
[BlackElo "2283"]
[Annotator "ChessBase"]
[PlyCount "105"]
[EventDate "2020.01.02"]
[EventType "tourn"]
[EventCountry "IRL"]
[SourceTitle "playchess.com"]
[Source "ChessBase"]
[SourceQuality "1"]
[TimeControl "40/5400+30:1800+30"]

1. c4 {[%emt 0:00:18]} e5 {[%emt 0:01:37]} 2. Nc3 {[%emt 0:00:19]} Bb4 {[%emt 0:00:10]} 3. Nd5 {[%emt 0:00:30]} Bc5 {[%emt 0:00:13]} 4. e3 {[%emt 0:00:37]} Nf6 {[%emt 0:01:10]} 5. b4 {[%emt 0:00:16]} Nxd5 {[%emt 0:00:42]} 6. bxc5 {[%emt 0:00:12]} Nf6 {[%emt 0:00:13]} 7. d4 {[%emt 0:00:26]} exd4 {[%emt 0:10:34]} 8. exd4 {[%emt 0:00:17]} O-O {[%emt 0:00:06]} 9. Bd3 {[%emt 0:00:15]} Re8+ {[%emt 0:03:36]} 10. Ne2 {[%emt 0:04:37]} b6 {[%emt 0:03:22]} 11. O-O {[%emt 0:00:49]} bxc5 {[%emt 0:02:55]} 12. Bg5 {[%emt 0:02:51]} h6 {[%emt 0:02:09]} 13. Bh4 {[%emt 0:00:14]} Nc6 {[%emt 0:24:18]} 14. dxc5 {[%emt 0:01:25]} d6 {[%emt 0:05:44]} 15. Nc3 {[%emt 0:07:36]} Ne5 {[%emt 0:10:41]} 16. f4 {[%emt 0:33:28]} Nxd3 {[%emt 0:10:47]} 17. Qxd3 {[%emt 0:00:14]} Bb7 {[%emt 0:00:02]} 18. cxd6 {[%emt 0:09:45]} Qxd6 {[%emt 0:03:22]} 19. Qxd6 {[%emt 0:00:47]} cxd6 {[%emt 0:00:01]} 20. Bxf6 {[%emt 0:01:36]} gxf6 {[%emt 0:00:02]} 21. Nb5 {[%emt 0:00:50]} Red8 {[%emt 0:05:31]} 22. Rfd1 {[%emt 0:01:07]} d5 {[%emt 0:00:36]} 23. cxd5 {[%emt 0:02:03]} Rac8 {[%emt 0:01:14]} 24. Nxa7 {[%emt 0:00:30]} Rc2 {[%emt 0:02:29]} 25. Nc6 {[%emt 0:00:23]} Bxc6 {[%emt 0:03:53]} 26. dxc6 {[%emt 0:00:04]} Rxd1+ {[%emt 0:00:03]} 27. Rxd1 {[%emt 0:00:08]} Rxc6 {[%emt 0:00:02]} 28. a4 {[%emt 0:01:27]} Ra6 {[%emt 0:01:14]} 29. Rd4 {[%emt 0:01:10]} Rb6 {[%emt 0:00:31]} 30. a5 {[%emt 0:04:07]} Rb1+ {[%emt 0:00:28]} 31. Kf2 {[%emt 0:00:04]} Ra1 {[%emt 0:00:15]} 32. Rd5 {[%emt 0:00:07]} Ra2+ {[%emt 0:01:05]} 33. Ke3 {[%emt 0:00:41]} Kg7 {[%emt 0:00:39]} 34. Kd3 {[%emt 0:07:13]} Rxg2 {[%emt 0:01:17]} 35. Kc3 {[%emt 0:01:06]} Rxh2 {[%emt 0:01:55]} 36. Rd2 {[%emt 0:10:31]} Rh1 {[%emt 0:00:44]} 37. Ra2 {[%emt 0:00:16]} h5 {[%emt 0:01:14]} 38. a6 {[%emt 0:00:55]} Rc1+ {[%emt 0:00:08]} 39. Kd4 {[%emt 0:00:09]} Rc8 {[%emt 0:00:18]} 40. a7 {[%emt 0:00:06]} Ra8 {[%emt 0:00:09]} 41. Kc5 {[%emt 0:30:08]} Kg6 {[%emt 0:30:25]} 42. Kb6 {[%emt 0:00:05]} Kf5 {[%emt 0:00:51]} 43. Rf2 {[%emt 0:05:06]} h4 {[%emt 0:00:26]} 44. Kb7 {[%emt 0:00:04]} Rxa7+ {[%emt 0:00:46]} 45. Kxa7 {[%emt 0:00:03]} h3 {[%emt 0:00:05]} 46. Kb6 {[%emt 0:00:13]} Kg4 {[%emt 0:00:05]} 47. Kc6 {[%emt 0:00:48]} Kg3 {[%emt 0:00:12]} 48. Rf1 {[%emt 0:00:12]} Kg2 {[%emt 0:04:33]} 49. Ra1 {[%emt 0:00:04]} Kf3 {[%emt 0:00:12]} 50. f5 {[%emt 0:00:26]} Ke4 {[%emt 0:01:00]} 51. Rf1 {[%emt 0:00:58]} h2 {[%emt 0:00:13]} 52. Kc5 {[%emt 0:01:19]} Ke5 {[%emt 0:00:27]} 53. Kc4 {[%emt 0:00:13]} 1-0

[Event "Irish New Year Events-IM1 2020"]
[Site "Dublin"]
[Date "2020.01.03"]
[Round "3.7"]
[White "Melaugh, Shane"]
[Black "Baker, Chris W"]
[Result "1/2-1/2"]
[ECO "D38"]
[WhiteElo "2207"]
[BlackElo "2225"]
[Annotator "NA"]
[PlyCount "54"]
[EventDate "2020.01.02"]
[EventType "tourn"]
[EventCountry "IRL"]
[SourceTitle "playchess.com"]
[Source "ChessBase"]
[SourceQuality "1"]
[TimeControl "40/5400+30:1800+30"]

1. c4 {[%emt 0:00:00]} e6 {[%emt 0:00:30]} 2. Nc3 {[%emt 0:00:00]} d5 {[%emt 0:02:04]} 3. d4 {[%emt 0:00:00]} Nf6 {[%emt 0:00:17]} 4. Nf3 {[%emt 0:00:00]} Bb4 {[%emt 0:02:50]} 5. Qa4+ {[%emt 0:03:47]} Nc6 {[%emt 0:00:14]} 6. cxd5 {[%emt 0:00:14]} Nxd5 {[%emt 0:04:35]} 7. Bd2 {[%emt 0:00:20]} O-O {[%emt 0:01:07]} 8. e3 {[%emt 0:00:30]} a6 {[%emt 0:05:05]} 9. Be2 {[%emt 0:02:17]} Bd7 {[%emt 0:07:04]} 10. Qc2 {[%emt 0:00:15]} Bd6 {[%emt 0:02:22]} 11. O-O {[%emt 0:02:05]} Nf6 {[%emt 0:03:34]} 12. e4 {[%emt 0:06:08]} e5 {[%emt 0:00:30]} 13. dxe5 {[%emt 0:00:53]} Nxe5 {[%emt 0:00:16]} 14. Nxe5 {[%emt 0:00:24]} Bxe5 {[%emt 0:00:07]} 15. Bg5 {[%emt 0:01:23]} h6 {[%emt 0:05:20]} 16. Bh4 {[%emt 0:01:18]} Qe8 {[%emt 0:02:19]} 17. Rad1 {[%emt 0:03:28]} Bc6 {[%emt 0:02:40]} 18. f3 {[%emt 0:04:57]} Qe6 {[%emt 0:06:07]} 19. b3 {[%emt 0:03:51]} Bxc3 {[%emt 0:06:45]} 20. Qxc3 {[%emt 0:00:17]} Nxe4 {[%emt 0:00:07]} 21. fxe4 {[%emt 0:00:39]} Qxe4 {[%emt 0:00:09]} 22. Bf3 {[%emt 0:00:10]} Qxh4 {[%emt 0:00:15]} 23. Bxc6 {[%emt 0:00:06]} bxc6 {[%emt 0:00:05]} 24. Qxc6 {[%emt 1:08:58]} a5 {[%emt 0:47:38]} 25. Qxc7 {[%emt 0:00:30]} a4 {[%emt 0:00:30]} 26. Qc4 {[%emt 0:00:30]} Qxc4 {[%emt 0:00:30]} 27. bxc4 {[%emt 0:00:30]} Rac8 {[%emt 0:00:30]} 1/2-1/2

[Event "Irish New Year Events-IM1 2020"]
[Site "Dublin"]
[Date "2020.01.03"]
[Round "3.10"]
[White "Hammar, Bengt"]
[Black "Waters, Michael"]
[Result "0-1"]
[ECO "B41"]
[WhiteElo "2175"]
[BlackElo "2130"]
[Annotator "NA"]
[PlyCount "56"]
[EventDate "2020.01.02"]
[EventType "tourn"]
[EventCountry "IRL"]
[SourceTitle "playchess.com"]
[Source "ChessBase"]
[SourceQuality "1"]
[TimeControl "40/5400+30:1800+30"]

1. e4 {[%emt 0:19:54]} c5 {[%emt 0:00:00]} 2. Nf3 {[%emt 0:00:16]} e6 {[%emt 0:00:02]} 3. d4 {[%emt 0:00:48]} cxd4 {[%emt 0:00:08]} 4. Nxd4 {[%emt 0:00:05]} a6 {[%emt 0:00:45]} 5. c4 {[%emt 0:06:07]} Nf6 {[%emt 0:00:36]} 6. Nc3 {[%emt 0:00:12]} Bb4 {[%emt 0:00:42]} 7. Nc2 {[%emt 0:00:06]} Bxc3+ {[%emt 0:03:03]} 8. bxc3 {[%emt 0:00:35]} Qa5 {[%emt 0:02:14]} 9. Qd3 {[%emt 0:01:28]} Qe5 {[%emt 0:03:17]} 10. f3 {[%emt 0:05:56]} d5 {[%emt 0:00:40]} 11. Ba3 {[%emt 0:01:21]} dxe4 {[%emt 0:01:30]} 12. Qe3 {[%emt 0:00:48]} Nc6 {[%emt 0:02:00]} 13. f4 {[%emt 0:01:08]} Qa5 {[%emt 0:05:00]} 14. Be2 {[%emt 0:01:51]} e5 {[%emt 0:02:43]} 15. O-O {[%emt 0:01:07]} exf4 {[%emt 0:07:35]} 16. Rxf4 {[%emt 0:01:01]} Be6 {[%emt 0:00:21]} 17. Qg3 {[%emt 0:25:25]} O-O-O {[%emt 0:13:36]} 18. Qxg7 {[%emt 0:00:49]} Nh5 {[%emt 0:15:34]} 19. Bxh5 {[%emt 0:03:59]} Qxh5 {[%emt 0:00:08]} 20. Ne3 {[%emt 0:06:48]} Rhg8 {[%emt 0:05:40]} 21. Qf6 {[%emt 0:00:10]} Qe2 {[%emt 0:01:26]} 22. Bc1 {[%emt 0:01:07]} Rd1+ {[%emt 0:05:11]} 23. Rf1 {[%emt 0:01:53]} Rxc1 {[%emt 0:01:18]} 24. Raxc1 {[%emt 0:01:29]} Qxe3+ {[%emt 0:00:08]} 25. Kh1 {[%emt 0:00:08]} Bxc4 {[%emt 0:05:05]} 26. Rfe1 {[%emt 0:00:29]} Qd2 {[%emt 0:01:02]} 27. Qf5+ {[%emt 0:00:30]} Be6 {[%emt 0:00:30]} 28. Qxe4 {[%emt 0:00:20]} Rxg2 {[%emt 0:01:50]} 0-1

[Event "Irish New Year Events-IM1 2020"]
[Site "Dublin"]
[Date "2020.01.04"]
[Round "4.6"]
[White "Mannion, Stephen R"]
[Black "Waters, Michael"]
[Result "1/2-1/2"]
[ECO "B41"]
[WhiteElo "2283"]
[BlackElo "2130"]
[Annotator "ChessBase"]
[PlyCount "146"]
[EventDate "2020.01.02"]
[EventType "tourn"]
[EventCountry "IRL"]
[SourceTitle "playchess.com"]
[Source "ChessBase"]
[SourceQuality "1"]
[TimeControl "5400+30"]

1. e4 {[%emt 0:02:58]} c5 {[%emt 0:00:00]} 2. Nf3 {[%emt 0:00:04]} e6 {[%emt 0:00:00]} 3. d4 {[%emt 0:00:04]} cxd4 {[%emt 0:00:21]} 4. Nxd4 {[%emt 0:00:04]} a6 {[%emt 0:00:32]} 5. c4 {[%emt 0:00:09]} Nf6 {[%emt 0:00:31]} 6. Nc3 {[%emt 0:00:07]} d6 {[%emt 0:01:03]} 7. Be2 {[%emt 0:02:36]} Be7 {[%emt 0:00:31]} 8. O-O {[%emt 0:00:40]} Qc7 {[%emt 0:00:39]} 9. Be3 {[%emt 0:01:20]} Nbd7 {[%emt 0:01:20]} 10. Rc1 {[%emt 0:00:36]} b6 {[%emt 0:00:47]} 11. f3 {[%emt 0:05:33]} Bb7 {[%emt 0:01:14]} 12. b4 {[%emt 0:02:59]} O-O {[%emt 0:02:22]} 13. a3 {[%emt 0:00:33]} Rfc8 {[%emt 0:01:46]} 14. Qd2 {[%emt 0:04:59]} Qd8 {[%emt 0:06:16]} 15. Rfd1 {[%emt 0:02:46]} Ne5 {[%emt 0:03:16]} 16. Na4 {[%emt 0:01:59]} Nfd7 {[%emt 0:01:33]} 17. Nb2 {[%emt 0:06:16]} Rab8 {[%emt 0:07:46]} 18. Rc2 {[%emt 0:10:13]} Nf6 {[%emt 0:02:50]} 19. Rdc1 {[%emt 0:01:50]} Nc6 {[%emt 0:08:49]} 20. Nxc6 {[%emt 0:13:44]} Rxc6 {[%emt 0:00:55]} 21. Na4 {[%emt 0:02:25]} Ba8 {[%emt 0:05:44]} 22. b5 {[%emt 0:14:06]} axb5 {[%emt 0:00:39]} 23. cxb5 {[%emt 0:00:02]} Rxc2 {[%emt 0:00:39]} 24. Rxc2 {[%emt 0:07:24]} Nd7 {[%emt 0:00:56]} 25. Qc3 {[%emt 0:02:05]} Bb7 {[%emt 0:09:59]} 26. Qd4 {[%emt 0:06:08]} Nc5 {[%emt 0:02:31]} 27. Nxc5 {[%emt 0:01:48]} dxc5 {[%emt 0:08:22]} 28. Qxd8+ {[%emt 0:02:10]} Rxd8 {[%emt 0:00:57]} 29. Rd2 {[%emt 0:00:13]} Kf8 {[%emt 0:02:31]} 30. Rxd8+ {[%emt 0:00:19]} Bxd8 {[%emt 0:00:06]} 31. Kf1 {[%emt 0:00:08]} Ke8 {[%emt 0:01:04]} 32. Ke1 {[%emt 0:00:12]} Bc7 {[%emt 0:00:21]} 33. h3 {[%emt 0:00:21]} f5 {[%emt 0:01:04]} 34. exf5 {[%emt 0:02:52]} exf5 {[%emt 0:00:05]} 35. Bc4 {[%emt 0:00:18]} f4 {[%emt 0:01:06]} 36. Bd2 {[%emt 0:02:00]} Be5 {[%emt 0:00:04]} 37. Ke2 {[%emt 0:00:39]} Ke7 {[%emt 0:01:05]} 38. a4 {[%emt 0:00:23]} g5 {[%emt 0:01:17]} 39. a5 {[%emt 0:02:17]} bxa5 {[%emt 0:00:05]} 40. Bxa5 {[%emt 0:00:01]} h5 {[%emt 0:00:42]} 41. Kd3 {[%emt 0:03:50]} g4 {[%emt 0:00:25]} 42. hxg4 {[%emt 0:00:01]} hxg4 {[%emt 0:00:20]} 43. Ke2 {[%emt 0:00:03]} Kd7 {[%emt 0:01:39]} 44. Bd3 {[%emt 0:01:58]} Kd6 {[%emt 0:01:29]} 45. Bd8 {[%emt 0:00:44]} Bd5 {[%emt 0:00:38]} 46. b6 {[%emt 0:00:02]} c4 {[%emt 0:00:34]} 47. Bf5 {[%emt 0:00:13]} gxf3+ {[%emt 0:01:28]} 48. gxf3 {[%emt 0:00:01]} Kc6 {[%emt 0:02:15]} 49. Bc8 {[%emt 0:00:03]} c3 {[%emt 0:00:36]} 50. b7 {[%emt 0:00:54]} Bc4+ {[%emt 0:02:01]} 51. Ke1 {[%emt 0:00:42]} c2 {[%emt 0:02:58]} 52. Kd2 {[%emt 0:00:01]} Bd3 {[%emt 0:01:06]} 53. Bf6 {[%emt 0:01:09]} Bb8 {[%emt 0:00:26]} 54. Bb2 {[%emt 0:00:10]} Bg6 {[%emt 0:00:16]} 55. Bd4 {[%emt 0:01:01]} Kd5 {[%emt 0:01:41]} 56. Bb2 {[%emt 0:00:38]} Ba7 {[%emt 0:00:51]} 57. Ke2 {[%emt 0:00:14]} Kc5 {[%emt 0:05:36]} 58. Bc1 {[%emt 0:01:03]} Bb8 {[%emt 0:00:03]} 59. Kd2 {[%emt 0:00:43]} Kb4 {[%emt 0:00:40]} 60. Bb2 {[%emt 0:00:35]} Ba7 {[%emt 0:00:58]} 61. Be6 {[%emt 0:00:08]} Bb8 {[%emt 0:01:34]} 62. Kc1 {[%emt 0:00:48]} Bd6 {[%emt 0:02:09]} 63. Kd2 {[%emt 0:00:01]} Ka4 {[%emt 0:01:42]} 64. Kc1 {[%emt 0:00:16]} Bb8 {[%emt 0:03:44]} 65. Kd2 {[%emt 0:00:08]} Ba7 {[%emt 0:00:10]} 66. Ke2 {[%emt 0:00:50]} Ka5 {[%emt 0:00:34]} 67. Bc1 {[%emt 0:00:23]} Bb8 {[%emt 0:00:13]} 68. Kd2 {[%emt 0:00:20]} Be5 {[%emt 0:00:54]} 69. Bb3 {[%emt 0:00:13]} Bh5 {[%emt 0:02:13]} 70. Ke2 {[%emt 0:00:21]} Bg6 {[%emt 0:00:50]} 71. Kd2 {[%emt 0:00:02]} Bh5 {[%emt 0:00:16]} 72. Ke2 {[%emt 0:00:05]} Bg6 {[%emt 0:00:11]} 73. Kd2 {[%emt 0:00:24]} Bh5 {[%emt 0:00:04]} 1/2-1/2

[Event "Irish New Year Events-IM1 2020"]
[Site "Dublin"]
[Date "2020.01.04"]
[Round "4.7"]
[White "Ahlander, Bjorn"]
[Black "Hammar, Bengt"]
[Result "1-0"]
[ECO "E94"]
[WhiteElo "2418"]
[BlackElo "2175"]
[Annotator "ChessBase"]
[PlyCount "95"]
[EventDate "2020.01.02"]
[EventType "tourn"]
[EventCountry "IRL"]
[SourceTitle "playchess.com"]
[Source "ChessBase"]
[SourceQuality "1"]
[TimeControl "5400+30"]

1. d4 {[%emt 0:00:00]} Nf6 {[%emt 0:02:23]} 2. Nf3 {[%emt 0:00:10]} g6 {[%emt 0:01:44]} 3. c4 {[%emt 0:00:12]} Bg7 {[%emt 0:00:07]} 4. Nc3 {[%emt 0:00:04]} O-O {[%emt 0:03:36]} 5. e4 {[%emt 0:01:46]} d6 {[%emt 0:01:53]} 6. Be2 {[%emt 0:00:03]} Nbd7 {[%emt 0:00:21]} 7. O-O {[%emt 0:00:11]} e5 {[%emt 0:00:10]} 8. Be3 {[%emt 0:00:18]} c6 {[%emt 0:01:55]} 9. d5 {[%emt 0:00:09]} c5 {[%emt 0:00:39]} 10. Ne1 {[%emt 0:00:08]} Ne8 {[%emt 0:00:39]} 11. Nd3 {[%emt 0:01:15]} f5 {[%emt 0:00:50]} 12. exf5 {[%emt 0:00:07]} gxf5 {[%emt 0:00:08]} 13. f4 {[%emt 0:00:07]} e4 {[%emt 0:01:57]} 14. Nf2 {[%emt 0:00:03]} Ndf6 {[%emt 0:02:31]} 15. Kh1 {[%emt 0:00:07]} Qe7 {[%emt 0:02:05]} 16. h3 {[%emt 0:07:17]} h5 {[%emt 0:04:59]} 17. g3 {[%emt 0:03:41]} Qf7 {[%emt 0:01:43]} 18. Rg1 {[%emt 0:00:07]} Qg6 {[%emt 0:05:21]} 19. a4 {[%emt 0:00:54]} a5 {[%emt 0:08:42]} 20. Ra3 {[%emt 0:03:54]} b6 {[%emt 0:04:11]} 21. Nb5 {[%emt 0:08:02]} Kf7 {[%emt 0:10:41]} 22. Rb3 {[%emt 0:01:12]} Ra6 {[%emt 0:02:22]} 23. Rg2 {[%emt 0:01:45]} Rh8 {[%emt 0:00:55]} 24. Bd2 {[%emt 0:01:54]} Bd7 {[%emt 0:05:35]} 25. Kg1 {[%emt 0:03:09]} Bf8 {[%emt 0:07:56]} 26. Qc2 {[%emt 0:11:53]} Be7 {[%emt 0:03:31]} 27. Kf1 {[%emt 0:01:16]} Ra8 {[%emt 0:04:33]} 28. Nc3 {[%emt 0:02:52]} Rb8 {[%emt 0:02:15]} 29. Nb5 {[%emt 0:01:10]} Ra8 {[%emt 0:01:01]} 30. Ke1 {[%emt 0:01:00]} Rg8 {[%emt 0:01:54]} 31. Kd1 {[%emt 0:01:04]} Qh7 {[%emt 0:00:32]} 32. Kc1 {[%emt 0:01:03]} Rg7 {[%emt 0:00:31]} 33. Qd1 {[%emt 0:00:51]} Bd8 {[%emt 0:03:35]} 34. Kb1 {[%emt 0:01:01]} Ke7 {[%emt 0:00:42]} 35. Re3 {[%emt 0:01:48]} Nc7 {[%emt 0:01:37]} 36. Nc3 {[%emt 0:12:55]} Na6 {[%emt 0:04:39]} 37. g4 {[%emt 0:01:02]} hxg4 {[%emt 0:01:34]} 38. hxg4 {[%emt 0:00:03]} fxg4 {[%emt 0:01:42]} 39. Nxg4 {[%emt 0:01:27]} Kf8 {[%emt 0:04:00]} 40. f5 {[%emt 0:06:33]} Bxf5 {[%emt 0:02:26]} 41. Qf1 {[%emt 0:01:14]} Bxg4 {[%emt 0:01:40]} 42. Bxg4 {[%emt 0:00:04]} Ke8 {[%emt 0:00:03]} 43. Bf5 {[%emt 0:05:48]} Rxg2 {[%emt 0:00:21]} 44. Bxh7 {[%emt 0:01:08]} Rxd2 {[%emt 0:00:03]} 45. Nxe4 {[%emt 0:06:32]} Nxe4 {[%emt 0:00:07]} 46. Rxe4+ {[%emt 0:00:10]} Kd7 {[%emt 0:00:18]} 47. Qf7+ {[%emt 0:00:38]} Kc8 {[%emt 0:00:06]} 48. Bf5+ {[%emt 0:00:12]} 1-0

[Event "Irish New Year Events-IM1 2020"]
[Site "Dublin"]
[Date "2020.01.04"]
[Round "4.8"]
[White "Venkatesan, Kavin"]
[Black "O`Donnell, Conor"]
[Result "1-0"]
[ECO "E43"]
[WhiteElo "1815"]
[BlackElo "2307"]
[Annotator "ChessBase"]
[PlyCount "139"]
[EventDate "2020.01.02"]
[EventType "tourn"]
[EventCountry "IRL"]
[SourceTitle "playchess.com"]
[Source "ChessBase"]
[SourceQuality "1"]
[TimeControl "5400+30"]

1. d4 {[%emt 0:00:00]} e6 {[%emt 0:10:06]} 2. c4 {[%emt 0:00:00]} b6 {[%emt 0:00:15]} 3. Nc3 {[%emt 0:00:47]} Bb7 {[%emt 0:00:55]} 4. e3 {[%emt 0:05:34]} f5 {[%emt 0:01:59]} 5. Nf3 {[%emt 0:02:52]} Nf6 {[%emt 0:00:08]} 6. Bd3 {[%emt 0:00:32]} Bb4 {[%emt 0:03:20]} 7. O-O {[%emt 0:00:57]} Ne4 {[%emt 0:04:17]} 8. Bxe4 {[%emt 0:03:23]} fxe4 {[%emt 0:00:07]} 9. Nd2 {[%emt 0:00:47]} Bxc3 {[%emt 0:01:50]} 10. bxc3 {[%emt 0:00:10]} Qg5 {[%emt 0:05:59]} 11. Qe2 {[%emt 0:06:16]} c5 {[%emt 0:03:15]} 12. f3 {[%emt 0:01:53]} Qh5 {[%emt 0:04:33]} 13. Qd1 {[%emt 0:06:20]} exf3 {[%emt 0:01:00]} 14. Nxf3 {[%emt 0:00:24]} O-O {[%emt 0:01:43]} 15. Bb2 {[%emt 0:06:13]} Nc6 {[%emt 0:10:56]} 16. Qd3 {[%emt 0:07:51]} Na5 {[%emt 0:05:29]} 17. Nd2 {[%emt 0:01:43]} d6 {[%emt 0:07:09]} 18. e4 {[%emt 0:05:37]} Ba6 {[%emt 0:01:59]} 19. d5 {[%emt 0:04:04]} e5 {[%emt 0:05:12]} 20. Rae1 {[%emt 0:05:18]} Rxf1+ {[%emt 0:04:29]} 21. Rxf1 {[%emt 0:00:19]} Rf8 {[%emt 0:00:21]} 22. Rxf8+ {[%emt 0:08:59]} Kxf8 {[%emt 0:00:08]} 23. Qf3+ {[%emt 0:01:44]} Qxf3 {[%emt 0:00:57]} 24. gxf3 {[%emt 0:00:03]} Bxc4 {[%emt 0:00:57]} 25. a3 {[%emt 0:01:00]} Ke7 {[%emt 0:00:37]} 26. Kf2 {[%emt 0:00:28]} Kf6 {[%emt 0:00:40]} 27. Kg3 {[%emt 0:01:41]} Be2 {[%emt 0:02:04]} 28. Kf2 {[%emt 0:02:38]} Bd1 {[%emt 0:01:18]} 29. Nf1 {[%emt 0:02:19]} Ba4 {[%emt 0:02:45]} 30. Ne3 {[%emt 0:01:18]} Bd7 {[%emt 0:00:04]} 31. Kg3 {[%emt 0:02:38]} Kg5 {[%emt 0:02:38]} 32. Nc2 {[%emt 0:03:12]} Nb7 {[%emt 0:01:14]} 33. Ne3 {[%emt 0:01:50]} b5 {[%emt 0:00:32]} 34. Nc2 {[%emt 0:00:23]} Nd8 {[%emt 0:02:02]} 35. Ne3 {[%emt 0:01:13]} Nf7 {[%emt 0:00:45]} 36. Nc2 {[%emt 0:00:57]} Nh8 {[%emt 0:00:32]} 37. Ne3 {[%emt 0:02:55]} Ng6 {[%emt 0:00:25]} 38. Bc1 {[%emt 0:00:33]} Kf6 {[%emt 0:02:40]} 39. Nc2 {[%emt 0:00:55]} Nh8 {[%emt 0:01:43]} 40. Ne3 {[%emt 0:00:13]} Nf7 {[%emt 0:00:06]} 41. Bb2 {[%emt 0:00:44]} Ng5 {[%emt 0:00:22]} 42. Bc1 {[%emt 0:00:59]} Nh3 {[%emt 0:00:48]} 43. Nc2 {[%emt 0:01:26]} g5 {[%emt 0:01:39]} 44. Ne1 {[%emt 0:02:23]} Nf4 {[%emt 0:01:03]} 45. Bxf4 {[%emt 0:00:33]} exf4+ {[%emt 0:03:59]} 46. Kf2 {[%emt 0:00:31]} a5 {[%emt 0:00:54]} 47. Nc2 {[%emt 0:00:54]} h5 {[%emt 0:01:00]} 48. Kg2 {[%emt 0:00:55]} g4 {[%emt 0:02:03]} 49. Ne1 {[%emt 0:01:23]} c4 {[%emt 0:00:42]} 50. h3 {[%emt 0:02:47]} Ke5 {[%emt 0:02:25]} 51. hxg4 {[%emt 0:00:47]} hxg4 {[%emt 0:00:03]} 52. Nc2 {[%emt 0:00:29]} gxf3+ {[%emt 0:00:59]} 53. Kxf3 {[%emt 0:00:04]} Be8 {[%emt 0:00:12]} 54. Nd4 {[%emt 0:01:15]} Bh5+ {[%emt 0:00:18]} 55. Kf2 {[%emt 0:00:17]} b4 {[%emt 0:02:07]} 56. axb4 {[%emt 0:00:37]} axb4 {[%emt 0:00:02]} 57. Nc6+ {[%emt 0:01:14]} Kxe4 {[%emt 0:00:02]} 58. Nxb4 {[%emt 0:00:10]} Bg4 {[%emt 0:01:08]} 59. Ke1 {[%emt 0:01:41]} Ke3 {[%emt 0:00:26]} 60. Nc2+ {[%emt 0:00:28]} Ke4 {[%emt 0:01:56]} 61. Nb4 {[%emt 0:01:35]} Kf3 {[%emt 0:00:10]} 62. Nc2 {[%emt 0:01:28]} Kg2 {[%emt 0:00:24]} 63. Na3 {[%emt 0:00:47]} f3 {[%emt 0:01:04]} 64. Nxc4 {[%emt 0:00:16]} f2+ {[%emt 0:00:19]} 65. Kd2 {[%emt 0:00:07]} Kf3 {[%emt 0:00:39]} 66. Ne3 {[%emt 0:00:23]} Ke4 {[%emt 0:00:18]} 67. Nf1 {[%emt 0:00:47]} Kf4 {[%emt 0:00:36]} 68. Ne3 {[%emt 0:00:28]} Bh5 {[%emt 0:00:40]} 69. Nf1 {[%emt 0:00:19]} Kf3 {[%emt 0:00:28]} 70. Ne3 {[%emt 0:00:33]} 1-0

[Event "Irish New Year Events-IM1 2020"]
[Site "Dublin"]
[Date "2020.01.04"]
[Round "4.10"]
[White "Delaney, Killian"]
[Black "Melaugh, Shane"]
[Result "1/2-1/2"]
[ECO "A22"]
[WhiteElo "2278"]
[BlackElo "2207"]
[Annotator "NA"]
[PlyCount "48"]
[EventDate "2020.01.02"]
[EventType "tourn"]
[EventCountry "IRL"]
[SourceTitle "playchess.com"]
[Source "ChessBase"]
[SourceQuality "1"]
[TimeControl "5400+30"]

1. c4 {[%emt 0:00:00]} e5 {[%emt 0:10:16]} 2. Nc3 {[%emt 0:02:36]} Nf6 {[%emt 0:00:06]} 3. e3 {[%emt 0:00:13]} d5 {[%emt 0:00:14]} 4. cxd5 {[%emt 0:00:09]} Nxd5 {[%emt 0:00:05]} 5. Nf3 {[%emt 0:00:14]} Nxc3 {[%emt 0:01:52]} 6. bxc3 {[%emt 0:00:06]} Bd6 {[%emt 0:00:06]} 7. d4 {[%emt 0:00:13]} Qe7 {[%emt 0:01:46]} 8. Qc2 {[%emt 0:02:33]} Nd7 {[%emt 0:04:36]} 9. Bd3 {[%emt 0:00:46]} b6 {[%emt 0:02:33]} 10. O-O {[%emt 0:07:02]} Bb7 {[%emt 0:00:16]} 11. e4 {[%emt 0:00:06]} O-O {[%emt 0:00:32]} 12. a4 {[%emt 0:07:08]} Rac8 {[%emt 0:05:35]} 13. a5 {[%emt 0:02:57]} c5 {[%emt 0:00:44]} 14. dxe5 {[%emt 0:04:50]} Bxe5 {[%emt 0:01:04]} 15. Re1 {[%emt 0:03:50]} Rfd8 {[%emt 0:06:54]} 16. axb6 {[%emt 0:05:57]} axb6 {[%emt 0:01:33]} 17. Bc4 {[%emt 0:00:50]} h6 {[%emt 0:05:20]} 18. Bd5 {[%emt 0:13:03]} Bxd5 {[%emt 0:02:09]} 19. exd5 {[%emt 0:00:04]} Qf6 {[%emt 0:00:07]} 20. Nxe5 {[%emt 0:00:09]} Nxe5 {[%emt 0:00:04]} 21. Qe4 {[%emt 0:00:39]} Ng6 {[%emt 0:02:45]} 22. Bd2 {[%emt 0:10:50]} c4 {[%emt 0:00:49]} 23. Be3 {[%emt 0:01:42]} Qxc3 {[%emt 0:00:45]} 24. Bxb6 {[%emt 0:00:24]} Rd6 {[%emt 0:00:39]} 1/2-1/2

[Event "Irish New Year Events-IM1 2020"]
[Site "Dublin"]
[Date "2020.01.04"]
[Round "5.6"]
[White "Melaugh, Shane"]
[Black "Mannion, Stephen R"]
[Result "1/2-1/2"]
[ECO "B13"]
[WhiteElo "2207"]
[BlackElo "2283"]
[Annotator "ChessBase"]
[PlyCount "21"]
[EventDate "2020.01.02"]
[EventType "tourn"]
[EventCountry "IRL"]
[SourceTitle "playchess.com"]
[Source "ChessBase"]
[SourceQuality "1"]
[TimeControl "5400+30"]

1. d4 {[%emt 0:00:00]} d5 {[%emt 0:00:00]} 2. Bf4 {[%emt 0:00:00]} Nf6 {[%emt 0:00:14]} 3. Nc3 {[%emt 0:00:00]} c5 {[%emt 0:00:12]} 4. e3 {[%emt 0:00:02]} cxd4 {[%emt 0:00:31]} 5. exd4 {[%emt 0:00:22]} a6 {[%emt 0:00:29]} 6. Nf3 {[%emt 0:00:48]} Nc6 {[%emt 0:00:16]} 7. Qd2 {[%emt 0:00:20]} Bf5 {[%emt 0:00:47]} 8. a3 {[%emt 0:00:23]} e6 {[%emt 0:00:34]} 9. Bd3 {[%emt 0:01:10]} Bxd3 {[%emt 0:13:58]} 10. Qxd3 {[%emt 0:00:07]} Bd6 {[%emt 0:00:10]} 11. Bxd6 {[%emt 1:32:18]} 1/2-1/2